fUST/lending_fUST_20250717
["ID","MTS","AMOUNT","RATE_DAILY","PERIOD"]
[372700246,1752743454958,-1974.18,0.00020058,2]
[372700247,1752743454967,-460.0,0.00020058,2]
[372700248,1752743454976,-812.76,0.00020058,2]
[372700249,1752743454986,-536.03,0.00020058,2]
[372700250,1752743454996,-4926.46,0.00020059,2]
[372700251,1752743455005,-892.26,0.00020059,2]
[372700252,1752743455015,-508.35,0.00020059,2]
[372700253,1752743455025,-460.0,0.00020059,2]
[372700254,1752743455034,-552.96,0.00020059,2]
[372700255,1752743455045,-614.92,0.00020059,2]
[372700256,1752743455062,-518.11,0.00020059,2]
[372700257,1752743455072,-264.28,0.00020061,2]
[372700259,1752743455081,-460.0,0.00020061,2]
[372700261,1752743455091,-460.59,0.00020061,2]
[372700262,1752743455100,-460.0,0.00020061,2]
[372700263,1752743455110,-460.0,0.00020061,2]
[372700265,1752743455119,-460.0,0.00020062,2]
[372700267,1752743455131,-460.0,0.00020062,2]
[372700268,1752743455141,-460.0,0.00020062,2]
[372700270,1752743455150,-615.79,0.00020062,2]
[372700271,1752743455159,-460.0,0.00020062,2]
[372700272,1752743455169,-3069.5,0.00020062,2]
[372700273,1752743455179,-460.0,0.00020062,2]
[372700274,1752743455189,-844.3,0.00020062,2]
[372700275,1752743455198,-1401.96,0.00020062,2]
[372700276,1752743455208,-1503.67,0.00020062,2]
[372700277,1752743455218,-786.73,0.00020062,2]
[372700278,1752743455227,-2756.35,0.00020062,2]
[372700279,1752743455237,-460.0,0.00020063,2]
[372700280,1752743455247,-460.0,0.00020063,2]
[372700281,1752743455256,-563.63,0.00020063,2]
[372700282,1752743455266,-577.52,0.00020063,2]
[372700283,1752743455275,-460.0,0.00020063,2]
[372700284,1752743455284,-484.06,0.00020063,2]
[372700285,1752743455294,-460.0,0.00020064,2]
[372700286,1752743455303,-1167.6,0.00020064,2]
[372700287,1752743455313,-4961.71,0.00020064,2]
[372700288,1752743455322,-1121.28,0.00020064,2]
[372700289,1752743455332,-151.0,0.00020065,2]
[372700290,1752743455341,-460.0,0.00020065,2]
[372700291,1752743455351,-460.0,0.00020065,2]
[372700292,1752743455361,-215.0738,0.00020066,2]
[372700293,1752743455370,-479.32,0.00020067,2]
[372700294,1752743455381,-11165.86211437,0.00020107,2]
[372700295,1752743455391,-706.869512,0.00020187,2]
[372700296,1752743455400,-460.0,0.00020238,2]
[372700297,1752743455410,-448.39973829,0.00020254,2]
[372700298,1752743455419,-1000.0,0.00020273,2]
[372700299,1752743455429,-540.13657752,0.00020273,2]
[372700300,1752743455439,-1000.0,0.00020273,2]
[372700301,1752743455449,-1000.0,0.00020273,2]
[372700302,1752743455459,-219.3,0.00020287,3]
[372700303,1752743455468,-11165.86211437,0.00020314,3]
[372700304,1752743455478,-880.22841907,0.00020316,2]
[372700305,1752743455488,-460.0,0.0002033,2]
[372700306,1752743455496,-460.0,0.0002033,2]
[372700307,1752743455506,-1492.09,0.0002033,2]
[372700308,1752743455516,-3527.42,0.00020332,2]
[372700309,1752743455526,-2526.09,0.00020332,2]
[372700310,1752743455535,-582.36,0.00020332,2]
[372700311,1752743455544,-2814.44,0.00020332,2]
[372700312,1752743455554,-1974.18,0.00020332,2]
[372700313,1752743455563,-460.0,0.00020332,2]
[372700314,1752743455573,-812.76,0.00020332,2]
[372700315,1752743455582,-536.03,0.00020332,2]
[372700316,1752743455591,-4926.46,0.00020333,2]
[372700317,1752743455601,-892.26,0.00020333,2]
[372700318,1752743455610,-508.35,0.00020333,2]
[372700319,1752743455619,-460.0,0.00020333,2]
[372700320,1752743455630,-552.96,0.00020333,2]
[372700321,1752743455641,-614.92,0.00020333,2]
[372700322,1752743455650,-518.11,0.00020333,2]
[372700323,1752743455660,-234.21922923,0.00020335,2]
[372700324,1752743455669,-460.59,0.00020335,2]
[372700325,1752743455679,-460.0,0.00020335,2]
[372700326,1752743455688,-460.0,0.00020335,2]
[372700327,1752743455698,-460.0,0.00020336,2]
[372700328,1752743455707,-615.79,0.00020336,2]
[372700329,1752743455717,-460.0,0.00020336,2]
[372700330,1752743455726,-3069.5,0.00020336,2]
[372700331,1752743455735,-460.0,0.00020336,2]
[372700332,1752743455745,-844.3,0.00020336,2]
[372700333,1752743455755,-1401.96,0.00020336,2]
[372700334,1752743455765,-1503.67,0.00020336,2]
[372700335,1752743455775,-786.73,0.00020336,2]
[372700336,1752743455785,-2756.35,0.00020336,2]
[372700337,1752743455795,-460.0,0.00020337,2]
[372700338,1752743455916,-460.0,0.00020337,2]
[372700339,1752743455927,-563.63,0.00020337,2]
[372700340,1752743455937,-577.52,0.00020337,2]
[372700341,1752743455950,-460.0,0.00020337,2]
[372700342,1752743455959,-484.06,0.00020337,2]
[372700343,1752743455969,-460.0,0.00020338,2]
[372700344,1752743455979,-1167.6,0.00020338,2]
[372700345,1752743455989,-4961.71,0.00020338,2]
[372700346,1752743455998,-1121.28,0.00020338,2]
[372700347,1752743456008,-214.96534424,0.00020339,2]
[372700348,1752743456019,-247.2,0.00020339,2]
[372700350,1752743456030,-479.32,0.00020341,2]
[372700352,1752743456040,-150.095,0.00020347,2]
[372700354,1752743456049,-150.13,0.00020347,2]
[372700356,1752743456058,-150.203,0.00020347,2]
[372700358,1752743456068,-1000.0,0.00020357,2]
[372700360,1752743456077,-360.0,0.00020389,2]
[372700362,1752743456088,-292.53576505,0.0002039,3]
[372700364,1752743456097,-151.0,0.00020447,2]
[372700365,1752743456107,-1500.0,0.00020468,2]
[372700367,1752743456117,-469.0,0.00020479,2]
[372700369,1752743456128,-460.0,0.00020512,2]
[372700370,1752743456139,-11165.86211437,0.00020521,3]
[372700371,1752743456148,-469.0,0.00020538,2]
[372700373,1752743456158,-469.0,0.00020541,2]
[372700375,1752743456169,-2155.0,0.00020561,2]
[372700377,1752743456178,-968.0,0.00020561,2]
[372700379,1752743456188,-150.461,0.00020566,2]
[372700380,1752743456197,-151.011,0.00020566,2]
[372700382,1752743456208,-218.115,0.00020566,2]
[372700383,1752743456217,-682.536,0.00020566,2]
[372700384,1752743456227,-349.11,0.00020604,2]
[372700385,1752743456236,-460.0,0.00020604,2]
[372700386,1752743456246,-1492.09,0.00020604,2]
[372700387,1752743456256,-3527.42,0.00020606,2]
[372700388,1752743456266,-2526.09,0.00020606,2]
[372700389,1752743456275,-582.36,0.00020606,2]
[372700390,1752743456284,-2814.44,0.00020606,2]
[372700391,1752743456294,-1974.18,0.00020606,2]
[372700392,1752743456304,-460.0,0.00020606,2]
[372700393,1752743456314,-812.76,0.00020606,2]
[372700394,1752743456323,-536.03,0.00020606,2]
[372700395,1752743456333,-4926.46,0.00020607,2]
[372700396,1752743456342,-892.26,0.00020607,2]
[372700397,1752743456352,-508.35,0.00020607,2]
[372700398,1752743456361,-460.0,0.00020607,2]
[372700399,1752743456371,-552.96,0.00020607,2]
[372700400,1752743456382,-614.92,0.00020607,2]
[372700401,1752743456391,-518.11,0.00020607,2]
[372700402,1752743456401,-460.59,0.00020609,2]
[372700403,1752743456411,-460.0,0.00020609,2]
[372700404,1752743456420,-460.0,0.00020609,2]
[372700405,1752743456430,-460.0,0.0002061,2]
[372700406,1752743456439,-615.79,0.0002061,2]
[372700407,1752743456448,-460.0,0.0002061,2]
[372700408,1752743456458,-3069.5,0.0002061,2]
[372700409,1752743456467,-460.0,0.0002061,2]
[372700410,1752743456477,-844.3,0.0002061,2]
[372700411,1752743456486,-1401.96,0.0002061,2]
[372700412,1752743456496,-1503.67,0.0002061,2]
[372700413,1752743456505,-786.73,0.0002061,2]
[372700414,1752743456515,-2756.35,0.0002061,2]
[372700415,1752743456524,-460.0,0.00020611,2]
[372700416,1752743456534,-460.0,0.00020611,2]
[372700417,1752743456544,-563.63,0.00020611,2]
[372700418,1752743456553,-577.52,0.00020611,2]
[372700419,1752743456562,-460.0,0.00020611,2]
[372700420,1752743456571,-484.06,0.00020611,2]
[372700421,1752743456580,-460.0,0.00020612,2]
[372700422,1752743456590,-1167.6,0.00020612,2]
[372700423,1752743456599,-4961.71,0.00020612,2]
[372700424,1752743456608,-1121.28,0.00020612,2]
[372700425,1752743456617,-479.32,0.00020615,2]
[372700426,1752743456626,-12607.95677342,0.0002063,3]
[372700427,1752743456638,-214.44804168,0.0002063,3]
[372700428,1752743456646,-469.0,0.00020713,2]
[372700429,1752743456655,-11165.86211437,0.00020728,3]
[372700430,1752743456664,-460.0,0.00020786,2]
[372700431,1752743456673,-469.0,0.00020792,2]
[372700432,1752743456683,-219.3,0.00020798,4]
[372700433,1752743456692,-1500.0,0.00020821,2]
[372700434,1752743456701,-1500.0,0.00020821,2]
[372700435,1752743456710,-1500.0,0.00020821,2]
[372700436,1752743456719,-460.0,0.00020878,2]
[372700437,1752743456728,-1492.09,0.00020878,2]
[372700438,1752743456737,-3527.42,0.0002088,2]
[372700439,1752743456746,-2526.09,0.0002088,2]
[372700440,1752743456756,-582.36,0.0002088,2]
[372700441,1752743456765,-2814.44,0.0002088,2]
[372700442,1752743456775,-1974.18,0.0002088,2]
[372700443,1752743456784,-215.76687275,0.0002088,2]
[372700444,1752743456793,-812.76,0.0002088,2]
[372700445,1752743456802,-536.03,0.0002088,2]
[372700446,1752743456811,-4926.46,0.00020881,2]
[372700447,1752743456820,-892.26,0.00020881,2]
[372700448,1752743456829,-508.35,0.00020881,2]
[372700449,1752743456838,-460.0,0.00020881,2]
[372700450,1752743456847,-552.96,0.00020881,2]
[372700451,1752743456857,-614.92,0.00020881,2]
[372700452,1752743456866,-518.11,0.00020881,2]
[372700453,1752743456875,-460.59,0.00020883,2]
[372700454,1752743456887,-460.0,0.00020883,2]
[372700455,1752743456898,-460.0,0.00020883,2]
[372700456,1752743456907,-415.66,0.00020884,2]
[372700457,1752743456917,-615.79,0.00020884,2]
[372700458,1752743456926,-460.0,0.00020884,2]
[372700459,1752743456935,-3069.5,0.00020884,2]
[372700460,1752743456945,-460.0,0.00020884,2]
[372700461,1752743456956,-844.3,0.00020884,2]
[372700462,1752743456965,-1401.96,0.00020884,2]
[372700463,1752743456974,-1503.67,0.00020884,2]
[372700464,1752743456983,-786.73,0.00020884,2]
[372700465,1752743456994,-2756.35,0.00020884,2]
[372700466,1752743457002,-460.0,0.00020885,2]
[372700467,1752743457011,-460.0,0.00020885,2]
[372700468,1752743457021,-563.63,0.00020885,2]
[372700469,1752743457030,-577.52,0.00020885,2]
[372700470,1752743457040,-460.0,0.00020885,2]
[372700471,1752743457048,-484.06,0.00020885,2]
[372700472,1752743457058,-460.0,0.00020886,2]
[372700473,1752743457068,-1167.6,0.00020886,2]
[372700474,1752743457077,-4961.71,0.00020886,2]
[372700475,1752743457086,-1121.28,0.00020886,2]
[372700476,1752743457095,-479.32,0.00020889,2]
[372700477,1752743457104,-151.0,0.000209,3]
[372700478,1752743457113,-1500.0,0.00020905,2]
[372700479,1752743457123,-11165.86211437,0.00020934,4]
[372700480,1752743457133,-460.0,0.00020937,2]
[372700481,1752743457142,-469.0,0.0002094,2]
[372700482,1752743457151,-500.0,0.00020957,2]
[372700483,1752743457161,-800.0,0.00020972,2]
[372700484,1752743457170,-274.547869,0.00021,3]
[372700485,1752743457179,-500.0,0.00021009,2]
[372700486,1752743457188,-500.0,0.00021009,2]
[372700487,1752743457197,-500.0,0.00021009,2]
[372700488,1752743457206,-2000.0,0.00021016,2]
[372700489,1752743457216,-469.0,0.00021054,2]
[372700490,1752743457226,-581.75027151,0.0002106,2]
[372700491,1752743457235,-151.0,0.00021069,2]
[372700492,1752743457245,-500.0,0.000211,2]
[372700493,1752743457255,-274.547869,0.00021107,4]
[372700494,1752743457266,-469.0,0.00021137,2]
[372700495,1752743457277,-11165.86211437,0.00021141,4]
[372700496,1752743457286,-460.0,0.00021152,2]
[372700497,1752743457296,-3527.42,0.00021154,2]
[372700498,1752743457306,-2526.09,0.00021154,2]
[372700499,1752743457315,-582.36,0.00021154,2]
[372700500,1752743457325,-2814.44,0.00021154,2]
[372700501,1752743457336,-1974.18,0.00021154,2]
[372700502,1752743457346,-812.76,0.00021154,2]
[372700503,1752743457356,-536.03,0.00021154,2]
[372700504,1752743457365,-4926.46,0.00021155,2]
[372700505,1752743457374,-892.26,0.00021155,2]
[372700506,1752743457387,-508.35,0.00021155,2]
[372700507,1752743457396,-460.0,0.00021155,2]
[372700508,1752743457407,-552.96,0.00021155,2]
[372700509,1752743457416,-614.92,0.00021155,2]
[372700510,1752743457426,-518.11,0.00021155,2]
[372700511,1752743457438,-460.59,0.00021157,2]
[372700512,1752743457447,-460.0,0.00021157,2]
[372700513,1752743457457,-460.0,0.00021157,2]
[372700514,1752743457470,-469.0,0.00021157,2]
[372700515,1752743457481,-615.79,0.00021158,2]
[372700516,1752743457490,-460.0,0.00021158,2]
[372700517,1752743457499,-3069.5,0.00021158,2]
[372700518,1752743457509,-460.0,0.00021158,2]
[372700519,1752743457518,-844.3,0.00021158,2]
[372700520,1752743457528,-1401.96,0.00021158,2]
[372700521,1752743457538,-1503.67,0.00021158,2]
[372700522,1752743457547,-786.73,0.00021158,2]
[372700523,1752743457557,-2756.35,0.00021158,2]
[372700524,1752743457567,-460.0,0.00021159,2]
[372700525,1752743457576,-460.0,0.00021159,2]
[372700526,1752743457585,-563.63,0.00021159,2]
[372700527,1752743457594,-577.52,0.00021159,2]
[372700528,1752743457603,-460.0,0.00021159,2]
[372700529,1752743457614,-484.06,0.00021159,2]
[372700530,1752743457623,-460.0,0.0002116,2]
[372700531,1752743457637,-1167.6,0.0002116,2]
[372700532,1752743457646,-4961.71,0.0002116,2]
[372700533,1752743457657,-1121.28,0.0002116,2]
[372700534,1752743457667,-479.32,0.00021163,2]
[372700535,1752743457677,-500.0,0.00021178,2]
[372700536,1752743457687,-500.0,0.00021178,2]
[372700537,1752743457697,-469.0,0.000212,2]
[372700538,1752743457707,-1299.305,0.00021223,2]
[372700539,1752743457717,-469.0,0.00021247,2]
[372700540,1752743457726,-3248.22385313,0.0002128,2]
[372700541,1752743457736,-7301.19516587,0.0002128,2]
[372700542,1752743457746,-219.3,0.00021308,4]
[372700544,1752743457755,-274.547869,0.00021348,2]
[372700546,1752743457764,-11165.86211437,0.00021348,5]
[372700548,1752743457773,-469.0,0.00021348,2]
[372700550,1752743457783,-448.39973829,0.00021362,2]
[372700552,1752743457792,-2000.0,0.00021369,2]
[372700554,1752743457802,-789.48901587,0.00021369,2]
[372700556,1752743457811,-2000.0,0.00021369,2]
[372700558,1752743457820,-405.23881486,0.00021426,2]
[372700560,1752743457830,-3527.42,0.00021428,2]
[372700562,1752743457839,-2526.09,0.00021428,2]
[372700564,1752743457848,-582.36,0.00021428,2]
[372700566,1752743457858,-2814.44,0.00021428,2]
[372700567,1752743457869,-1974.18,0.00021428,2]
[372700568,1752743457881,-812.76,0.00021428,2]
[372700569,1752743457891,-536.03,0.00021428,2]
[372700570,1752743457900,-4926.46,0.00021429,2]
[372700571,1752743457910,-892.26,0.00021429,2]
[372700572,1752743457920,-508.35,0.00021429,2]
[372700573,1752743457930,-460.0,0.00021429,2]
[372700574,1752743457940,-552.96,0.00021429,2]
[372700575,1752743457953,-614.92,0.00021429,2]
[372700576,1752743457963,-518.11,0.00021429,2]
[372700577,1752743457972,-460.59,0.00021431,2]
[372700578,1752743457982,-460.0,0.00021431,2]
[372700579,1752743457993,-460.0,0.00021431,2]
[372700580,1752743458003,-615.79,0.00021432,2]
[372700581,1752743458013,-460.0,0.00021432,2]
[372700582,1752743458024,-3069.5,0.00021432,2]
[372700583,1752743458034,-460.0,0.00021432,2]
[372700584,1752743458043,-844.3,0.00021432,2]
[372700585,1752743458053,-1401.96,0.00021432,2]
[372700586,1752743458062,-1503.67,0.00021432,2]
[372700587,1752743458071,-786.73,0.00021432,2]
[372700588,1752743458080,-2756.35,0.00021432,2]
[372700589,1752743458090,-460.0,0.00021433,2]
[372700590,1752743458100,-460.0,0.00021433,2]
[372700591,1752743458109,-563.63,0.00021433,2]
[372700592,1752743458119,-577.52,0.00021433,2]
[372700593,1752743458131,-460.0,0.00021433,2]
[372700594,1752743458140,-484.06,0.00021433,2]
[372700595,1752743458150,-460.0,0.00021434,2]
[372700596,1752743458159,-1167.6,0.00021434,2]
[372700597,1752743458169,-4961.71,0.00021434,2]
[372700598,1752743458178,-1121.28,0.00021434,2]
[372700599,1752743458291,-223.0315306,0.00021435,2]
[372700600,1752743458302,-479.32,0.00021437,2]
[372700601,1752743458311,-2000.0,0.00021453,2]
[372700602,1752743458321,-560.0,0.00021485,2]
[372700603,1752743458331,-469.0,0.00021499,2]
[372700604,1752743458340,-500.0,0.000215,2]
[372700605,1752743458350,-469.0,0.0002151,2]
[372700606,1752743458359,-11165.86211437,0.00021555,5]
[372700607,1752743458369,-1000.0,0.00021557,2]
[372700608,1752743458380,-1000.0,0.00021557,2]
[372700609,1752743458390,-2551.95579571,0.00021564,2]
[372700610,1752743458399,-151.0,0.0002159,2]
[372700611,1752743458409,-151.0,0.00021612,2]
[372700612,1752743458419,-1017.73282195,0.00021648,2]
[372700613,1752743458428,-469.0,0.00021678,2]
[372700614,1752743458438,-3527.42,0.00021702,2]
[372700615,1752743458447,-2526.09,0.00021702,2]
[372700616,1752743458457,-582.36,0.00021702,2]
[372700617,1752743458467,-2814.44,0.00021702,2]
[372700618,1752743458477,-1974.18,0.00021702,2]
[372700619,1752743458486,-812.76,0.00021702,2]
[372700620,1752743458496,-536.03,0.00021702,2]
[372700621,1752743458506,-4926.46,0.00021703,2]
[372700622,1752743458515,-892.26,0.00021703,2]
[372700623,1752743458524,-508.35,0.00021703,2]
[372700624,1752743458534,-460.0,0.00021703,2]
[372700625,1752743458544,-552.96,0.00021703,2]
[372700626,1752743458553,-614.92,0.00021703,2]
[372700627,1752743458563,-518.11,0.00021703,2]
[372700628,1752743458572,-460.59,0.00021705,2]
[372700629,1752743458582,-460.0,0.00021705,2]
[372700630,1752743458592,-460.0,0.00021705,2]
[372700631,1752743458602,-615.79,0.00021706,2]
[372700632,1752743458611,-460.0,0.00021706,2]
[372700633,1752743458621,-3069.5,0.00021706,2]
[372700634,1752743458631,-460.0,0.00021706,2]
[372700635,1752743458641,-844.3,0.00021706,2]
[372700636,1752743458650,-1401.96,0.00021706,2]
[372700637,1752743458661,-1503.67,0.00021706,2]
[372700638,1752743458671,-786.73,0.00021706,2]
[372700639,1752743458681,-2756.35,0.00021706,2]
[372700640,1752743458691,-460.0,0.00021707,2]
[372700641,1752743458701,-460.0,0.00021707,2]
[372700642,1752743458711,-563.63,0.00021707,2]
[372700643,1752743458721,-577.52,0.00021707,2]
[372700644,1752743458730,-460.0,0.00021707,2]
[372700645,1752743458740,-484.06,0.00021707,2]
[372700646,1752743458749,-460.0,0.00021708,2]
[372700647,1752743458759,-1167.6,0.00021708,2]
[372700648,1752743458769,-4961.71,0.00021708,2]
[372700649,1752743458779,-1121.28,0.00021708,2]
[372700650,1752743458788,-151.0,0.00021708,2]
[372700651,1752743458798,-151.0,0.00021709,2]
[372700652,1752743458808,-151.0,0.00021709,2]
[372700653,1752743458817,-264.466478,0.00021709,2]
[372700654,1752743458828,-264.466478,0.00021709,2]
[372700655,1752743458837,-479.32,0.00021711,2]
[372700656,1752743458847,-348.63922981,0.00021726,2]
[372700657,1752743458857,-1000.0,0.00021726,2]
[372700658,1752743458866,-469.0,0.00021729,2]
[372700659,1752743458876,-469.0,0.00021741,2]
[372700660,1752743458890,-11165.86211437,0.00021762,5]
[372700661,1752743458899,-469.0,0.00021774,2]
[372700662,1752743458910,-219.3,0.00021819,4]
[372700663,1752743458920,-2816.2436234,0.000219,2]
[372700664,1752743458930,-151.0,0.00021916,2]
[372700665,1752743458940,-2500.0,0.00021917,2]
[372700666,1752743458955,-1107.1850976,0.00021917,2]
[372700667,1752743458965,-150.0,0.00021918,2]
[372700668,1752743458975,-150.0,0.00021918,2]
[372700669,1752743458984,-200.0,0.00021918,2]
[372700670,1752743458994,-158.38,0.0002192,4]
[372700671,1752743459003,-159.7,0.0002192,4]
[372700672,1752743459013,-274.547869,0.00021945,3]
[372700673,1752743459023,-11165.86211437,0.00021969,6]
[372700674,1752743459033,-3527.42,0.00021976,2]
[372700675,1752743459042,-2526.09,0.00021976,2]
[372700676,1752743459052,-582.36,0.00021976,2]
[372700677,1752743459062,-2814.44,0.00021976,2]
[372700678,1752743459071,-1974.18,0.00021976,2]
[372700679,1752743459081,-812.76,0.00021976,2]
[372700680,1752743459091,-536.03,0.00021976,2]
[372700681,1752743459100,-4926.46,0.00021977,2]
[372700682,1752743459110,-892.26,0.00021977,2]
[372700683,1752743459119,-508.35,0.00021977,2]
[372700684,1752743459130,-460.0,0.00021977,2]
[372700685,1752743459139,-552.96,0.00021977,2]
[372700686,1752743459149,-614.92,0.00021977,2]
[372700687,1752743459158,-518.11,0.00021977,2]
[372700688,1752743459167,-460.59,0.00021979,2]
[372700689,1752743459177,-460.0,0.00021979,2]
[372700690,1752743459187,-520.27,0.00021979,2]
[372700691,1752743459196,-469.0,0.0002198,2]
[372700692,1752743459205,-615.79,0.0002198,2]
[372700693,1752743459215,-151.0,0.0002198,7]
[372700694,1752743459224,-151.0,0.0002198,7]
[372700695,1752743459233,-151.0,0.0002198,7]
[372700696,1752743459242,-151.0,0.0002198,7]
[372700697,1752743459252,-460.0,0.0002198,2]
[372700698,1752743459261,-3069.5,0.0002198,2]
[372700699,1752743459271,-460.0,0.0002198,2]
[372700700,1752743459281,-844.3,0.0002198,2]
[372700701,1752743459290,-397.382953,0.0002198,7]
[372700702,1752743459299,-280.940092,0.0002198,7]
[372700703,1752743459309,-280.940092,0.0002198,7]
[372700704,1752743459319,-397.382953,0.0002198,7]
[372700705,1752743459329,-151.0,0.0002198,7]
[372700706,1752743459338,-1401.96,0.0002198,2]
[372700707,1752743459348,-1503.67,0.0002198,2]
[372700708,1752743459358,-786.73,0.0002198,2]
[372700709,1752743459367,-2756.35,0.0002198,2]
[372700710,1752743459377,-460.0,0.00021981,2]
[372700711,1752743459388,-287.14,0.00021981,2]
[372700712,1752743459397,-563.63,0.00021981,2]
[372700713,1752743459406,-577.52,0.00021981,2]
[372700714,1752743459416,-460.0,0.00021981,2]
[372700715,1752743459425,-484.06,0.00021981,2]
[372700716,1752743459434,-460.0,0.00021982,2]
[372700717,1752743459443,-1167.6,0.00021982,2]
[372700718,1752743459452,-4961.71,0.00021982,2]
[372700719,1752743459462,-1121.28,0.00021982,2]
[372700720,1752743459471,-479.32,0.00021985,2]
[372700721,1752743459480,-151.0,0.00022,7]
[372700722,1752743459490,-8595.62,0.00022,7]
[372700723,1752743459499,-67928.09,0.00022,2]
[372700724,1752743459509,-192.69201,0.00022,7]
[372700725,1752743459518,-192.69201,0.00022,7]
[372700726,1752743459527,-151.0,0.00022,7]
[372700727,1752743459537,-151.0,0.00022,7]
[372700728,1752743459546,-4543.55,0.00022,7]
[372700729,1752743459555,-445.018353,0.00022,7]
[372700730,1752743459564,-32866.13,0.00022,7]
[372700731,1752743459574,-445.018353,0.00022,7]
[372700732,1752743459583,-253.221074,0.00022,7]
[372700733,1752743459592,-253.221074,0.00022,7]
[372700734,1752743459602,-151.0,0.00022,7]
[372700735,1752743459611,-587.289693,0.00022,7]
[372700736,1752743459621,-151.200515,0.00022,7]
[372700737,1752743459631,-587.289693,0.00022,7]
[372700738,1752743459640,-151.0,0.00022,7]
[372700739,1752743459649,-151.0,0.00022,7]
[372700740,1752743459658,-214.44804168,0.00022,7]
[372700741,1752743459668,-151.0,0.00022,7]
[372700742,1752743459678,-151.0,0.00022,7]
[372700743,1752743459687,-361.172065,0.00022,7]
[372700744,1752743459697,-361.172065,0.00022,7]
[372700745,1752743459707,-151.0,0.00022,7]
[372700746,1752743459716,-306.0,0.00022,2]
[372700747,1752743459726,-2311.52945269,0.00022001,2]
[372700748,1752743459735,-660.0,0.00022033,2]
[372700749,1752743459745,-469.0,0.00022055,2]
[372700750,1752743459755,-274.547869,0.0002207,4]
[372700751,1752743459765,-151.0,0.00022072,7]
[372700752,1752743459774,-469.0,0.00022077,2]
[372700753,1752743459788,-162.95721284,0.00022082,2]
[372700754,1752743459798,-162.95721284,0.00022082,2]
[372700755,1752743459808,-469.0,0.00022094,2]
[372700756,1752743459817,-469.0,0.00022097,2]
[372700757,1752743459827,-469.0,0.00022105,2]
[372700758,1752743459836,-1500.0,0.00022105,2]
[372700759,1752743459846,-11165.86211437,0.00022176,6]
[372700760,1752743459855,-306.0,0.00022192,7]
[372700761,1752743459865,-1634.0,0.00022192,2]
[372700762,1752743459875,-151.0,0.00022192,2]
[372700763,1752743459886,-199.48917632,0.00022192,2]
[372700764,1752743459897,-198.99179917,0.00022192,2]
[372700765,1752743459906,-151.0,0.00022192,2]
[372700766,1752743459916,-201.71044239,0.00022192,2]
[372700767,1752743459925,-500.0,0.00022192,2]
[372700768,1752743459935,-151.0,0.00022192,2]
[372700769,1752743459949,-151.0,0.00022192,2]
[372700770,1752743459959,-151.0,0.00022192,2]
[372700771,1752743459969,-151.0,0.00022192,2]
[372700772,1752743459979,-151.0,0.00022192,2]
[372700773,1752743459989,-151.0,0.00022192,2]
[372700774,1752743459999,-500.0,0.00022192,2]
[372700775,1752743460017,-151.0,0.00022192,2]
[372700776,1752743460027,-151.0,0.00022192,2]
[372700777,1752743460036,-500.0,0.00022192,2]